fUST/lending_fUST_20250917
["ID","MTS","AMOUNT","RATE_DAILY","PERIOD"]
[385901234,1758119442239,-151.0,0.00024658,2]
[385901235,1758119442248,-151.0,0.00024658,2]
[385901236,1758119442258,-151.0,0.00024658,2]
[385901237,1758119442267,-151.0,0.00024658,2]
[385901238,1758119442279,-151.0,0.00024658,2]
[385901239,1758119442288,-152.52821439,0.00024658,2]
[385901240,1758119442299,-151.0,0.00024658,2]
[385901241,1758119442309,-700.0,0.00024712,2]
[385901242,1758119442319,-500.0,0.00024773,2]
[385901243,1758119442328,-500.0,0.00024773,2]
[385901244,1758119442338,-2000.0,0.000248,2]
[385901245,1758119442349,-2000.0,0.000248,2]
[385901246,1758119442359,-277.0,0.000248,2]
[385901247,1758119442370,-15346.84205029,0.000248,3]
[385901248,1758119442381,-1199.65988754,0.000248,2]
[385901249,1758119442391,-4447.05018714,0.00024801,2]
[385901250,1758119442401,-160.59277001,0.00024801,2]
[385901251,1758119442411,-480.0,0.00024829,3]
[385901252,1758119442421,-357.2568059,0.00024873,2]
[385901253,1758119442431,-500.0,0.00024873,2]
[385901254,1758119442442,-500.0,0.00024873,2]
[385901255,1758119442454,-500.95718781,0.00024873,2]
[385901256,1758119442465,-500.0,0.00024873,2]
[385901257,1758119442475,-500.0,0.00024873,2]
[385901258,1758119442489,-500.0,0.00024873,2]
[385901259,1758119442499,-500.0,0.00024873,2]
[385901260,1758119442509,-1199.65988754,0.0002488,2]
[385901261,1758119442519,-160.0,0.00024884,2]
[385901262,1758119442529,-150.0,0.00024899,2]
[385901263,1758119442539,-500.0,0.00024899,2]
[385901264,1758119442549,-235.86139124,0.00024899,2]
[385901265,1758119442560,-500.0,0.00024899,2]
[385901266,1758119442581,-500.0,0.00024899,2]
[385901267,1758119442591,-500.0,0.00024899,2]
[385901268,1758119442602,-500.0,0.00024899,2]
[385901269,1758119442612,-500.0,0.00024899,2]
[385901270,1758119442622,-500.0,0.00024899,2]
[385901271,1758119442633,-500.0,0.00024899,2]
[385901272,1758119442643,-500.0,0.00024899,2]
[385901273,1758119442654,-579.23289119,0.00024899,2]
[385901274,1758119442664,-500.0,0.00024899,2]
[385901275,1758119442674,-603.6267469,0.000249,2]
[385901276,1758119442685,-1371.69,0.000249,7]
[385901277,1758119442695,-30363.70514828,0.000249,2]
[385901278,1758119442718,-5449.70843769,0.000249,2]
[385901279,1758119442730,-10540.8051012,0.000249,2]
[385901301,1758119444507,-44718.43777195,0.000249,2]
[385901302,1758119444522,-29615.01,0.000249,2]
[385901303,1758119444535,-289894.36481508,0.000249,2]
[385901320,1758119446935,-517.37635593,0.000249,2]
[385901322,1758119568585,245.79,0.00030287,50]
[385901323,1758119590862,97.4473432,0.00022742,2]
[385901324,1758119590887,314.4128448,0.00022742,2]
[385901325,1758119954251,161.3390906,0.00027836,30]
[385901330,1758120266217,162.0,0.0002,2]
[385901338,1758120336363,985.5889238,0.00022571,2]
[385901339,1758120440140,-431.0,0.00023279,2]
[385901340,1758120440163,-300.0,0.00023279,2]
[385901341,1758120440185,-445.8,0.0002328,3]
[385901342,1758120440207,-480.0,0.0002328,3]
[385901343,1758120440229,-480.0,0.0002328,3]
[385901344,1758120440251,-480.0,0.0002328,3]
[385901345,1758120440274,-185.13679793,0.0002328,3]
[385901346,1758120461875,6612.42386785,0.00028,30]
[385901347,1758120559498,205.930094,0.00022561,2]
[385901408,1758120632188,-480.0,0.0002328,3]
[385901410,1758120632198,-300.0,0.0002328,2]
[385901413,1758120632208,-480.0,0.00023281,3]
[385901414,1758120632218,-923.2,0.00023281,3]
[385901416,1758120632227,-843.74487992,0.00023281,3]
[385901422,1758120632267,-604.93646062,0.00023281,3]
[385901551,1758120638000,-480.0,0.00023282,3]
[385901552,1758120638010,-480.0,0.00023282,3]
[385901553,1758120638020,-10581.05038389,0.00023476,2]
[385901554,1758120638030,-480.0,0.0002351,3]
[385901555,1758120638040,-480.0,0.0002351,3]
[385901556,1758120638049,-480.0,0.0002351,3]
[385901557,1758120638060,-481.09,0.0002351,3]
[385901558,1758120638069,-480.0,0.0002351,3]
[385901559,1758120638079,-480.0,0.00023524,3]
[385901560,1758120638089,-480.0,0.00023525,3]
[385901561,1758120638098,-480.0,0.00023525,3]
[385901562,1758120638108,-480.0,0.00023525,3]
[385901563,1758120638118,-705.57,0.0002354,3]
[385901564,1758120638127,-480.0,0.0002354,3]
[385901565,1758120638137,-160.0,0.00023552,2]
[385901566,1758120638146,-632.23,0.00023553,3]
[385901567,1758120638155,-480.0,0.00023553,3]
[385901568,1758120638165,-480.0,0.00023553,3]
[385901569,1758120638174,-480.0,0.00023553,3]
[385901570,1758120638184,-480.0,0.00023554,3]
[385901571,1758120638193,-480.0,0.00023554,3]
[385901572,1758120638202,-81.62605416,0.00023555,3]
[385901573,1758120638215,-398.37394584,0.00023555,3]
[385901574,1758120638225,-923.2,0.00023555,3]
[385901575,1758120638235,-480.0,0.00023555,3]
[385901576,1758120638245,-208.24,0.00023556,3]
[385901577,1758120638255,-480.0,0.00023556,3]
[385901578,1758120638264,-149.75863489,0.00023638,2]
[385901579,1758120638276,-260.24136511,0.00023638,2]
[385901580,1758120638285,-229.64385723,0.00023638,2]
[385901581,1758120638297,-1037.75660572,0.00023638,2]
[385901598,1758120639915,-1763.71,0.00023282,3]
[385901599,1758120639924,-480.0,0.0002351,3]
[385901600,1758120639934,-569.59953705,0.00023638,2]
[385901601,1758120639943,-480.0,0.00023784,3]
[385901602,1758120639953,-480.0,0.00023784,3]
[385901603,1758120639963,-480.0,0.00023784,3]
[385901604,1758120639973,-182.26,0.00023784,3]
[385901605,1758120639982,-480.0,0.00023784,3]
[385901606,1758120639993,-480.0,0.00023798,3]
[385901607,1758120640002,-480.0,0.00023799,3]
[385901608,1758120640012,-480.0,0.00023799,3]
[385901609,1758120640024,-480.0,0.00023799,3]
[385901610,1758120640034,-705.57,0.00023814,3]
[385901612,1758120640044,-480.0,0.00023814,3]
[385901613,1758120640053,-7.62124718,0.00023827,3]
[385901614,1758120640065,-624.60875282,0.00023827,3]
[385901615,1758120640075,-480.0,0.00023827,3]
[385901616,1758120640084,-480.0,0.00023827,3]
[385901617,1758120640093,-480.0,0.00023827,3]
[385901618,1758120640103,-480.0,0.00023828,3]
[385901619,1758120640113,-151.42875607,0.00023828,3]
[385901620,1758120640124,-328.57124393,0.00023828,3]
[385901621,1758120640134,-480.0,0.00023829,3]
[385901622,1758120640144,-923.2,0.00023829,3]
[385901623,1758120640153,-480.0,0.00023829,3]
[385901624,1758120640162,-480.0,0.0002383,3]
[385901625,1758120640172,-480.0,0.00024058,3]
[385901626,1758120640181,-452.54,0.00024058,3]
[385901627,1758120640191,-480.0,0.00024058,3]
[385901628,1758120640200,-480.0,0.00024058,3]
[385901629,1758120640209,-480.0,0.00024072,3]
[385901630,1758120640218,-480.0,0.00024073,3]
[385901631,1758120640227,-480.0,0.00024073,3]
[385901632,1758120640239,-480.0,0.00024073,3]
[385901633,1758120640248,-705.57,0.00024088,3]
[385901634,1758120640257,-480.0,0.00024088,3]
[385901635,1758120640265,-632.23,0.00024101,3]
[385901636,1758120640274,-480.0,0.00024101,3]
[385901637,1758120640283,-480.0,0.00024101,3]
[385901638,1758120640292,-480.0,0.00024101,3]
[385901639,1758120640301,-480.0,0.00024102,3]
[385901640,1758120640310,-480.0,0.00024102,3]
[385901641,1758120640319,-480.0,0.00024102,3]
[385901642,1758120640328,-923.2,0.00024103,3]
[385901643,1758120640338,-480.0,0.00024103,3]
[385901644,1758120640347,-480.0,0.00024104,3]
[385901645,1758120640356,-507.53948521,0.00024152,2]
[385901646,1758120640365,-257.65595163,0.00024277,2]
[385901647,1758120640374,-480.0,0.00024332,3]
[385901648,1758120640383,-480.0,0.00024332,3]
[385901649,1758120640392,-480.0,0.00024332,3]
[385901650,1758120640401,-480.0,0.00024346,3]
[385901651,1758120640410,-480.0,0.00024347,3]
[385901652,1758120640419,-480.0,0.00024347,3]
[385901653,1758120640428,-480.0,0.00024347,3]
[385901654,1758120640437,-705.57,0.00024362,3]
[385901655,1758120640446,-480.0,0.00024362,3]
[385901656,1758120640456,-632.23,0.00024375,3]
[385901657,1758120640465,-480.0,0.00024375,3]
[385901658,1758120640475,-480.0,0.00024375,3]
[385901659,1758120640484,-480.0,0.00024375,3]
[385901660,1758120640494,-480.0,0.00024376,3]
[385901661,1758120640503,-480.0,0.00024376,3]
[385901662,1758120640513,-480.0,0.00024376,3]
[385901663,1758120640522,-923.2,0.00024377,3]
[385901664,1758120640532,-480.0,0.00024377,3]
[385901665,1758120640541,-480.0,0.00024378,3]
[385901666,1758120640550,-160.0,0.00024445,2]
[385901667,1758120640559,-257.65595159,0.00024544,2]
[385901668,1758120640569,-480.0,0.00024606,3]
[385901669,1758120640578,-480.0,0.00024606,3]
[385901670,1758120640587,-480.0,0.0002462,3]
[385901671,1758120640596,-601.05,0.00024621,3]
[385901672,1758120640605,-480.0,0.00024621,3]
[385901673,1758120640614,-480.0,0.00024621,3]
[385901674,1758120640624,-705.57,0.00024636,3]
[385901675,1758120640634,-480.0,0.00024636,3]
[385901676,1758120640643,-632.23,0.00024649,3]
[385901677,1758120640653,-480.0,0.00024649,3]
[385901678,1758120640662,-480.0,0.00024649,3]
[385901679,1758120640672,-480.0,0.00024649,3]
[385901680,1758120640681,-150.85187827,0.0002465,3]
[385901681,1758120640693,-291.99417758,0.0002465,3]
[385901682,1758120640702,-480.0,0.0002465,3]
[385901683,1758120640711,-480.0,0.0002465,3]
[385901684,1758120640721,-923.2,0.00024651,3]
[385901685,1758120640730,-333.1281311,0.00024651,3]
[385901710,1758120643198,-366.12177238,0.00023556,3]
[385901755,1758120646061,-1397.58822762,0.00023556,3]
[385901756,1758120646070,-1763.71,0.0002383,3]
[385901758,1758120646080,-1763.71,0.00024104,3]
[385901759,1758120646089,-480.0,0.00024606,3]
[385901760,1758120646099,-146.8718689,0.00024651,3]
[385901761,1758120646109,-480.0,0.00024652,3]
[385901762,1758120646118,-151.0,0.00024658,2]
[385901763,1758120646127,-151.0,0.00024658,2]
[385901764,1758120646136,-151.0,0.00024658,2]
[385901765,1758120646146,-151.0,0.00024658,2]
[385901766,1758120646155,-151.0,0.00024658,2]
[385901767,1758120646164,-151.0,0.00024658,2]
[385901768,1758120646173,-151.0,0.00024658,2]
[385901769,1758120646183,-244.49551392,0.00024658,2]
[385901770,1758120646192,-500.0,0.00024658,2]
[385901771,1758120646201,-151.0,0.00024658,2]
[385901772,1758120646210,-151.0,0.00024658,2]
[385901773,1758120646219,-151.0,0.00024658,2]
[385901774,1758120646228,-500.0,0.00024658,2]
[385901775,1758120646237,-220.59628392,0.00024658,2]
[385901776,1758120646246,-151.0,0.00024658,2]
[385901777,1758120646255,-151.0,0.00024658,2]
[385901778,1758120646264,-151.0,0.00024658,2]
[385901779,1758120646274,-700.0,0.00024712,2]
[385901780,1758120646283,-269.11396414,0.00024799,2]
[385901781,1758120646291,-500.0,0.00024799,2]
[385901782,1758120646300,-537.07366373,0.00024799,2]
[385901783,1758120646310,-622.0546245,0.00024799,2]
[385901784,1758120646319,-2035.6,0.000248,2]
[385901785,1758120646328,-2000.0,0.000248,2]
[385901786,1758120646338,-257.65595159,0.0002481,2]
[385901787,1758120646347,-177.0,0.00024813,2]
[385901788,1758120646356,-500.49005448,0.00024834,2]
[385901789,1758120646365,-279.92064043,0.00024852,2]
[385901790,1758120646374,-203.40225709,0.0002486,2]
[385901791,1758120646384,-4198.74,0.00024872,2]
[385901792,1758120646393,-500.0,0.00024873,2]
[385901793,1758120646402,-500.0,0.00024873,2]
[385901794,1758120646411,-500.0,0.00024873,2]
[385901795,1758120646420,-500.0,0.00024873,2]
[385901796,1758120646429,-500.0,0.00024873,2]
[385901797,1758120646438,-500.0,0.00024873,2]
[385901798,1758120646447,-500.0,0.00024873,2]
[385901799,1758120646456,-500.0,0.00024873,2]
[385901800,1758120646465,-500.0,0.00024873,2]
[385901801,1758120646474,-500.0,0.00024873,2]
[385901802,1758120646483,-500.0,0.00024873,2]
[385901803,1758120646593,-500.0,0.00024873,2]
[385901804,1758120646602,-500.0,0.00024873,2]
[385901805,1758120646612,-320.57648738,0.00024873,2]
[385901806,1758120646621,-480.0,0.0002488,3]
[385901807,1758120646630,-480.0,0.0002488,3]
[385901808,1758120646640,-480.0,0.0002488,3]
[385901809,1758120646649,-559.84128086,0.00024883,2]
[385901810,1758120646658,-613.08,0.00024883,3]
[385901811,1758120646667,-306.54,0.00024883,3]
[385901812,1758120646677,-153.27,0.00024883,3]
[385901813,1758120646686,-766.36,0.00024883,3]
[385901814,1758120646695,-151.29393884,0.0002489,3]
[385901815,1758120646706,-151.45100741,0.0002489,3]
[385901816,1758120646715,-279.92064043,0.0002489,2]
[385901817,1758120646724,-150.0,0.00024892,2]
[385901818,1758120646733,-55172.88739627,0.00024893,2]
[385901819,1758120646746,-27067.50468149,0.00024893,2]
[385901824,1758120820977,224.0463676,0.000199,2]
[385901825,1758120837741,605.39467192,0.00021044,6]
[385901826,1758120907464,159.0,8.3e-07,2]
[385901827,1758120908510,159.0,8.3e-07,2]
[385901828,1758120909345,291.0,0.00020986,3]
[385901829,1758120909674,182.96416777,0.00020438,3]
[385901830,1758120909776,159.0,8.3e-07,2]
[385901831,1758120928582,179.89,0.00020545,2]
[385901832,1758121020648,177.6,0.00020542,2]
[385901833,1758121105501,175.34,0.00020416,2]
[385901834,1758121160408,-350.68,0.00021388,2]
[385901835,1758121160443,-159.57994242,0.00021544,2]
[385901836,1758121160478,-661.2725846,0.00021995,2]
[385901837,1758121160514,-293.0,0.00022082,6]
[385901838,1758121160548,-526.01,0.0002236,2]
[385901839,1758121160581,-256.8014648,0.00022513,2]
[385901840,1758121160615,-151.0,0.00023096,2]
[385901841,1758121160648,-200.27710604,0.00023096,2]
[385901842,1758121160681,-295.0,0.00023178,9]
[385901843,1758121160714,-204.28055464,0.0002318,2]
[385901844,1758121160747,-992.50032166,0.0002318,2]
[385901845,1758121189410,180.28,0.00020661,2]
[385901846,1758121198363,-360.57,0.00021645,2]
[385901847,1758121198402,-540.85,0.00022629,2]
[385901848,1758121208434,-300.0,0.00023179,2]
[385901849,1758121208463,-300.0,0.00023179,2]
[385901850,1758121208586,-1200.0,0.00023179,2]
[385901851,1758121208617,-278.0,0.00023179,2]
[385901852,1758121218438,-300.0,0.00023179,2]
[385901853,1758121236114,166.679401,0.00011211,2]
[385901854,1758121236371,166.679401,0.00014948,2]
[385901855,1758121236659,166.679401,0.00018685,2]
[385901856,1758121237614,266.0,0.00020411,3]
[385901857,1758121243493,-227.0,0.00021507,4]
[385901858,1758121243531,-166.679401,0.00022422,2]
[385901859,1758121243566,-229.0,0.00022603,7]
[385901860,1758121263537,-523.27,0.00023179,3]
[385901861,1758121273671,-300.0,0.00023179,2]
[385901862,1758121274578,166.52,0.00020775,2]
[385901863,1758121283575,-333.03,0.00021765,2]
[385901864,1758121283607,-499.55,0.00022754,2]
[385901865,1758121283638,-480.0,0.00023179,3]
[385901866,1758121293565,-175.113434,0.00022422,2]
[385901867,1758121293596,-717.769667,0.00022485,2]
[385901868,1758121293628,-213.912508,0.0002258,2]
[385901869,1758121293661,-327.90699326,0.00022582,2]
[385901870,1758121293697,-480.0,0.00023179,3]
[385901871,1758121303636,-480.0,0.00023179,3]
[385901872,1758121313612,-606.7511941,0.00023063,10]
[385901873,1758121323668,-504.5,0.00023179,3]
[385901874,1758121361504,169.23,0.00020554,2]
[385901875,1758121441441,-171.7706344,0.00022138,2]
[385901876,1758121445104,167.07,0.00020553,2]
[385901877,1758121448843,-334.15,0.00021532,2]
[385901878,1758121448877,-300.0,0.00022228,2]
[385901879,1758121460436,-7336.36421426,0.00022229,2]
[385901880,1758121460610,-10000.01,0.00022229,2]
[385901881,1758121468906,-10000.01,0.00022229,2]
[385901882,1758121469147,-10000.01,0.00022229,2]
[385901883,1758121469324,-10000.01,0.00022229,2]
[385901884,1758121469485,-10000.01,0.00022229,2]
[385901885,1758121469657,-10000.01,0.00022229,2]
[385901886,1758121470627,-1305.87541346,0.00022229,2]
[385901887,1758121470652,-7388.25917308,0.00022229,2]
[385901890,1758121498725,-1000.0,0.00022238,2]
[385901891,1758121498781,-860.304374,0.00022253,2]
[385901892,1758121498816,-501.22,0.0002251,2]
[385901893,1758121498846,-214.84153999,0.0002317,2]
[385901894,1758121498877,-480.0,0.00023179,3]
[385901895,1758121498908,-480.0,0.00023179,3]
[385901896,1758121498939,-480.0,0.00023179,3]
[385901897,1758121498970,-480.0,0.00023179,3]
[385901898,1758121499001,-480.0,0.00023179,3]
[385901899,1758121499182,-47.27817202,0.00023179,3]
[385901900,1758121535787,247.49,0.00020544,2]
[385901901,1758121543987,-494.98,0.00021522,2]
[385901902,1758121544018,-742.46,0.000225,2]
[385901903,1758121544048,-300.0,0.00023178,2]
[385901904,1758121544078,-313.0,0.00023178,2]
[385901905,1758121544211,-6051.64,0.00023179,2]
[385901906,1758121544242,-10000.01,0.00023179,2]
[385901907,1758121554027,-4544.0903579,0.00023179,2]
[385901908,1758121554052,-911.8292842,0.00023179,2]
[385901909,1758121565119,220.0,0.00020384,3]
[385901910,1758121619043,228.59,0.00020412,2]
[385901911,1758121638100,-457.18,0.00021384,2]
[385901912,1758121638122,-183.0,0.00021479,4]
[385901913,1758121638145,-685.77,0.00022356,2]
[385901914,1758121638167,-184.0,0.00022575,7]
[385901915,1758121638190,-1200.0,0.00023178,2]
[385901916,1758121638212,-496.57,0.00023179,3]
[385901917,1758121638234,-482.34976014,0.00023179,3]
[385901918,1758121638256,-592.28956643,0.00023179,3]
[385901919,1758121638280,-480.0,0.00023179,3]
[385901920,1758121638303,-480.0,0.00023179,3]
[385901921,1758121638324,-480.0,0.00023179,3]
[385901922,1758121638347,-480.0,0.00023179,3]
[385901923,1758121638368,-480.0,0.00023179,3]
[385901924,1758121638390,-480.0,0.00023179,3]
[385901925,1758121638412,-480.0,0.00023179,3]
[385901926,1758121638436,-480.0,0.00023179,3]
[385901927,1758121638459,-480.0,0.00023179,3]
[385901928,1758121638483,-480.0,0.00023179,3]
[385901929,1758121638506,-480.0,0.00023179,3]
[385901930,1758121638530,-480.0,0.00023179,3]
[385901931,1758121638553,-480.0,0.00023179,3]
[385901932,1758121638574,-480.0,0.00023278,3]
[385901933,1758121638596,-480.0,0.00023278,3]
[385901934,1758121638619,-480.0,0.00023278,3]
[385901935,1758121638641,-480.0,0.00023278,3]
[385901936,1758121638662,-597.56,0.00023278,3]
[385901937,1758121638685,-480.0,0.00023278,3]
[385901938,1758121638706,-480.0,0.00023278,3]
[385901939,1758121638728,-480.0,0.00023278,3]
[385901940,1758121638752,-558.57,0.00023278,3]
[385901941,1758121638887,-480.0,0.00023278,3]
[385901942,1758121638912,-480.0,0.00023278,3]
[385901943,1758121638934,-480.0,0.00023278,3]
[385901944,1758121638957,-480.0,0.00023278,3]
[385901945,1758121638980,-696.54,0.00023278,3]
[385901946,1758121639001,-531.53982319,0.00023278,3]
[385901947,1758121639023,-480.0,0.00023278,3]
[385901948,1758121639045,-480.0,0.00023278,3]
[385901949,1758121639069,-995.19,0.00023278,3]
[385901950,1758121639092,-480.0,0.00023278,3]
[385901951,1758121639113,-480.0,0.00023279,3]
[385901952,1758121639135,-480.0,0.00023279,3]
[385901953,1758121639159,-483.48,0.00023279,3]
[385901954,1758121639186,-480.0,0.00023279,3]
[385901955,1758121639210,-480.0,0.00023279,3]
[385901956,1758121639232,-480.0,0.0002328,3]
[385901957,1758121639256,-480.0,0.0002328,3]
[385901958,1758121639280,-480.0,0.0002328,3]
[385901959,1758121639302,-297.77655345,0.0002328,3]
[385901960,1758121639324,-542.98,0.0002328,3]
[385901961,1758121639347,-509.31083558,0.0002328,3]
[385901962,1758121639369,-480.0,0.0002328,3]
[385901963,1758121639393,-480.0,0.0002328,3]
[385901964,1758121639416,-480.0,0.0002328,3]
[385901965,1758121639444,-480.0,0.0002328,3]
[385901966,1758121639466,-171.77063439,0.000233,2]
[385901967,1758121639490,-242.20370209,0.00023328,2]
[385901968,1758121704492,208.05,0.00020409,2]
[385901969,1758121719324,-416.1,0.00021381,2]
[385901970,1758121719356,-624.15,0.00022353,2]
[385901971,1758121719387,-2521.2431443,0.00022422,2]
[385901972,1758121719505,-2252.8737114,0.0002253,2]
[385901973,1758121729311,-1374.9373715,0.0002253,2]
[385901974,1758121729337,-7250.135257,0.0002253,2]
[385901975,1758121789257,192.42,0.00020543,2]
[385901993,1758121832370,-384.85,0.00021521,2]
[385901994,1758121832379,-273.8517598,0.00022279,2]
[385901995,1758121832389,-471.6982402,0.00022499,2]
[385901996,1758121832400,-105.5717598,0.00022499,2]
[385901997,1758121832409,-500.0,0.000225,2]
[385901998,1758121832417,-242.4282352,0.00023179,3]
[385902041,1758121838001,-71.4789348,0.00023179,3]
[385902043,1758121838011,-480.0,0.00023179,3]
[385902045,1758121838021,-480.0,0.00023179,3]
[385902047,1758121838030,-81.57846785,0.00023179,3]
[385902049,1758121838041,-398.42153215,0.00023179,3]
[385902051,1758121838050,-110.41690826,0.00023179,3]
[385902053,1758121838061,-326.75342642,0.00023179,3]
[385902058,1758121838097,-42.82966532,0.00023179,3]
[385902060,1758121838106,-481.08,0.00023179,3]
[385902062,1758121838115,-480.0,0.00023179,3]
[385902063,1758121838124,-480.0,0.00023179,3]
[385902065,1758121838134,-480.0,0.00023179,3]
[385902067,1758121838143,-480.0,0.00023179,3]
[385902069,1758121838153,-480.0,0.00023179,3]
[385902071,1758121838162,-765.75,0.00023179,3]
[385902073,1758121838171,-480.0,0.00023278,3]
[385902075,1758121838181,-480.0,0.00023278,3]
[385902077,1758121838190,-480.0,0.00023278,3]
[385902079,1758121838199,-584.79,0.00023278,3]
[385902081,1758121838208,-480.0,0.00023278,3]
[385902083,1758121838218,-480.0,0.00023278,3]
[385902085,1758121838227,-480.0,0.00023278,3]
[385902087,1758121838237,-480.0,0.00023278,3]
[385902089,1758121838246,-480.0,0.00023278,3]
[385902091,1758121838256,-480.0,0.00023278,3]
[385902093,1758121838266,-583.77,0.00023278,3]
[385902095,1758121838275,-480.0,0.00023278,3]
[385902096,1758121838284,-480.0,0.00023278,3]
[385902098,1758121838293,-521.63,0.00023278,3]
[385902100,1758121838303,-543.33,0.00023278,3]
[385902102,1758121838312,-480.0,0.00023278,3]
[385902104,1758121838322,-480.0,0.00023278,3]
[385902106,1758121838331,-512.98,0.00023279,3]
[385902108,1758121838342,-480.0,0.00023279,3]
[385902110,1758121838352,-480.0,0.00023279,3]
[385902112,1758121838361,-491.82,0.00023279,3]
[385902114,1758121838370,-480.0,0.00023279,3]
[385902116,1758121838380,-480.0,0.00023279,3]
[385902118,1758121838389,-480.0,0.00023279,3]
[385902120,1758121838398,-480.0,0.00023279,3]
[385902122,1758121838407,-480.0,0.00023279,3]
[385902124,1758121838416,-563.64,0.00023279,3]
[385902126,1758121838425,-480.0,0.00023279,3]
[385902128,1758121838434,-480.0,0.00023279,3]
[385902130,1758121838444,-480.0,0.0002328,3]
[385902132,1758121838453,-480.0,0.0002328,3]
[385902133,1758121838462,-151.0,0.00023328,2]
[385902135,1758121838472,-156.66352518,0.00023328,2]
[385902137,1758121838481,-1480.46979808,0.00023439,2]
[385902139,1758121838496,-506.65,0.00023453,3]
[385902141,1758121838505,-550.51,0.00023453,3]
[385902143,1758121838514,-342.49,0.00023453,3]
[385902145,1758121838527,-502.19,0.00023453,3]
[385902147,1758121838536,-471.57,0.00023453,3]
[385902149,1758121838545,-417.97,0.00023453,3]
[385902151,1758121838555,-359.58,0.00023453,3]
[385902153,1758121838567,-480.0,0.00023453,3]
[385902155,1758121838576,-480.0,0.00023453,3]
[385902157,1758121838585,-481.08,0.00023453,3]
[385902159,1758121838594,-480.0,0.00023453,3]
[385902171,1758121838708,-480.0,0.00023453,3]
[385902172,1758121838718,-480.0,0.00023453,3]
[385902173,1758121838727,-765.75,0.00023453,3]
[385902174,1758121838737,-769.7,0.00023477,2]
[385902175,1758121838746,-531.53982319,0.00023489,2]
[385902176,1758121838756,-500.0,0.00023524,2]
[385902177,1758121838765,-201.93286098,0.00023524,2]
[385902178,1758121838775,-151.0,0.00023524,2]
[385902179,1758121838784,-151.0,0.00023524,2]
[385902180,1758121838794,-250.0,0.00023524,2]
[385902181,1758121838804,-151.0,0.00023524,2]
[385902182,1758121838813,-151.0,0.00023524,2]
[385902183,1758121838822,-480.0,0.00023524,3]
[385902184,1758121838831,-480.0,0.00023524,3]
[385902185,1758121838841,-480.0,0.00023524,3]
[385902186,1758121838850,-480.0,0.00023524,3]
[385902187,1758121838859,-480.0,0.00023524,3]
[385902188,1758121838868,-480.0,0.00023524,3]
[385902189,1758121838877,-500.0,0.00023524,3]
[385902190,1758121838887,-480.0,0.00023524,3]
[385902191,1758121838896,-480.0,0.00023524,3]
[385902192,1758121838906,-480.0,0.00023524,3]
[385902193,1758121838915,-480.0,0.00023524,3]
[385902194,1758121838924,-480.0,0.00023524,3]
[385902195,1758121838933,-531.53982319,0.00023524,3]
[385902196,1758121838943,-480.0,0.00023524,3]
[385902197,1758121838952,-480.0,0.00023524,3]
[385902198,1758121838961,-480.0,0.00023524,3]
[385902199,1758121838971,-480.0,0.00023524,3]
[385902200,1758121838981,-480.0,0.00023524,3]